{"text_format":"1","workbook":"xlsx","n_sheets":6,"sheets":["eTW_Fin_izvjesce_analiza","Macros","Nalog_za_isplatu","popis banaka","HR_dnevnice","code"],"not_rendered":{"charts":0,"images":1,"macros":1,"external_links":1,"defined_names":24,"comments":1,"pivot_tables":0},"unopened":[],"bounds":{"document_bytes":16777216,"sheet_cells":100000,"rows_first":2000,"rows_last":500,"rows_between":2000,"halvings":0,"cell_chars":16384,"cell_head_chars":4096},"cells_cut":0,"cells_raw":0,"read":"whole","date_system":"1900"}

{"sheet":"eTW_Fin_izvjesce_analiza","index":0,"n_rows":64,"n_cols":9,"rows_kept":64,"cut":false,"hidden":false,"merged":[[7,1,7,5],[5,1,5,5],[6,1,6,5],[18,1,18,5],[15,1,15,5],[16,1,16,5],[14,1,14,5],[8,1,8,5],[9,1,9,5],[10,1,10,5],[13,1,13,5],[11,1,11,5],[12,1,12,5]]}
["FINANCIJSKO IZVJEŠĆE O SUDJELOVANJU NA AKTIVNOSTI eTWINNING I ZAHTJEV ZA ISPLATU"]
["Ispunjeni, potpisani i pečatirani obrazac (skenirani i Excel dokument) te dokaznu dokumentaciju potrebno je dostaviti Agenciji za mobilnost i programe EU, putem elektroničke pošte maja.tivanovac@mobilnost.hr najkasnije 30 kalendarskih dana od završetka Aktivnosti."]
[]
["Za troškove koje pokriva Agencija, financijskom izvješću obvezno je priložiti skenirane kopije potvrde o sudjelovanju te, ovisno o načinu putovanja, skenirane kopije putnih karata, računa, ukrcajnih propusnica. Agencija za mobilnost i programe EU zadržava pravo na zahtjev za originalnom dokumentacijom, ukoliko će to biti potrebno.\nU slučaju da Vam je Agencija prethodno odobrila putovanje automobilom, potrebno je priložiti skenirane kopije računa za plaćene cestarine, tunelarine, vinjete, kao i opis rute putovanja (http://www.viamichelin.com)."]
[]
["Broj ugovora"]
["Organizacija Korisnik"]
["Adresa organizacije Korisnika"]
["Točan naziv vlasnika računa"]
["OIB organizacije Korisnika"]
["IBAN organizacije Korisnika"]
["Model i poziv na broj (ako je primjenjivo)"]
["Naziv banke organizacije Korisnika",{"$f":"VLOOKUP(MID(B11,5,7),banke_popis[],2,FALSE)","v":{"$error":"#N/A"}}]
["Vrsta organizacije:"]
["Ime i prezime sudionika"]
["e-mail"]
["Naziv aktivnosti"]
["Država aktivnosti",null,null,null,null,null,null,{"$f":"VLOOKUP(B18,HR_dnevnice!A:C,2,FALSE)","v":{"$error":"#N/A"}},{"$f":"VLOOKUP(B18,dnevnice[],3,FALSE)","v":{"$error":"#N/A"}}]
["Datumi trajanja aktivnosti"]
[]
["Ostvareni troškovi prijevoza",null,null,null,null,null,"Popunjava djelatnik Agencije"]
["Datum ","Opis","Prijevozno sredstvo","prijevoz / dnevnica","Valuta","Iznos","Tečaj EK","Odobrava se\n(DA/NE)","Iznos HRK "]
[null,null,null,null,null,null,{"$f":"IF(Table2[[#This Row],[Valuta]]=\"EUR\",tecaj,\"\")","v":""},null,{"$f":"IF(Table2[[#This Row],[Valuta]]<>\"\",IF(Table2[[#This Row],[Valuta]]=\"HRK\",Table2[[#This Row],[Iznos]],ROUND(Table2[[#This Row],[Iznos]]*Table2[[#This Row],[Tečaj EK]],2)),\"\")","v":""}]
[null,null,null,null,null,null,{"$f":"IF(Table2[[#This Row],[Valuta]]=\"EUR\",tecaj,\"\")","v":""},null,{"$f":"IF(Table2[[#This Row],[Valuta]]<>\"\",IF(Table2[[#This Row],[Valuta]]=\"HRK\",Table2[[#This Row],[Iznos]],ROUND(Table2[[#This Row],[Iznos]]*Table2[[#This Row],[Tečaj EK]],2)),\"\")","v":""}]
[null,null,null,null,null,null,{"$f":"IF(Table2[[#This Row],[Valuta]]=\"EUR\",tecaj,\"\")","v":""},null,{"$f":"IF(Table2[[#This Row],[Valuta]]<>\"\",IF(Table2[[#This Row],[Valuta]]=\"HRK\",Table2[[#This Row],[Iznos]],ROUND(Table2[[#This Row],[Iznos]]*Table2[[#This Row],[Tečaj EK]],2)),\"\")","v":""}]
[null,null,null,null,null,null,{"$f":"IF(Table2[[#This Row],[Valuta]]=\"EUR\",tecaj,\"\")","v":""},null,{"$f":"IF(Table2[[#This Row],[Valuta]]<>\"\",IF(Table2[[#This Row],[Valuta]]=\"HRK\",Table2[[#This Row],[Iznos]],ROUND(Table2[[#This Row],[Iznos]]*Table2[[#This Row],[Tečaj EK]],2)),\"\")","v":""}]
[null,null,null,null,null,null,{"$f":"IF(Table2[[#This Row],[Valuta]]=\"EUR\",tecaj,\"\")","v":""},null,{"$f":"IF(Table2[[#This Row],[Valuta]]<>\"\",IF(Table2[[#This Row],[Valuta]]=\"HRK\",Table2[[#This Row],[Iznos]],ROUND(Table2[[#This Row],[Iznos]]*Table2[[#This Row],[Tečaj EK]],2)),\"\")","v":""}]
[null,null,null,null,null,null,{"$f":"IF(Table2[[#This Row],[Valuta]]=\"EUR\",tecaj,\"\")","v":""},null,{"$f":"IF(Table2[[#This Row],[Valuta]]<>\"\",IF(Table2[[#This Row],[Valuta]]=\"HRK\",Table2[[#This Row],[Iznos]],ROUND(Table2[[#This Row],[Iznos]]*Table2[[#This Row],[Tečaj EK]],2)),\"\")","v":""}]
[null,null,null,null,null,null,{"$f":"IF(Table2[[#This Row],[Valuta]]=\"EUR\",tecaj,\"\")","v":""},null,{"$f":"IF(Table2[[#This Row],[Valuta]]<>\"\",IF(Table2[[#This Row],[Valuta]]=\"HRK\",Table2[[#This Row],[Iznos]],ROUND(Table2[[#This Row],[Iznos]]*Table2[[#This Row],[Tečaj EK]],2)),\"\")","v":""}]
[null,null,null,null,null,null,{"$f":"IF(Table2[[#This Row],[Valuta]]=\"EUR\",tecaj,\"\")","v":""},null,{"$f":"IF(Table2[[#This Row],[Valuta]]<>\"\",IF(Table2[[#This Row],[Valuta]]=\"HRK\",Table2[[#This Row],[Iznos]],ROUND(Table2[[#This Row],[Iznos]]*Table2[[#This Row],[Tečaj EK]],2)),\"\")","v":""}]
[null,null,null,null,null,null,{"$f":"IF(Table2[[#This Row],[Valuta]]=\"EUR\",tecaj,\"\")","v":""},null,{"$f":"IF(Table2[[#This Row],[Valuta]]<>\"\",IF(Table2[[#This Row],[Valuta]]=\"HRK\",Table2[[#This Row],[Iznos]],ROUND(Table2[[#This Row],[Iznos]]*Table2[[#This Row],[Tečaj EK]],2)),\"\")","v":""}]
[null,null,null,null,null,null,{"$f":"IF(Table2[[#This Row],[Valuta]]=\"EUR\",tecaj,\"\")","v":""},null,{"$f":"IF(Table2[[#This Row],[Valuta]]<>\"\",IF(Table2[[#This Row],[Valuta]]=\"HRK\",Table2[[#This Row],[Iznos]],ROUND(Table2[[#This Row],[Iznos]]*Table2[[#This Row],[Tečaj EK]],2)),\"\")","v":""}]
[null,null,null,null,null,null,{"$f":"IF(Table2[[#This Row],[Valuta]]=\"EUR\",tecaj,\"\")","v":""},null,{"$f":"IF(Table2[[#This Row],[Valuta]]<>\"\",IF(Table2[[#This Row],[Valuta]]=\"HRK\",Table2[[#This Row],[Iznos]],ROUND(Table2[[#This Row],[Iznos]]*Table2[[#This Row],[Tečaj EK]],2)),\"\")","v":""}]
[null,null,null,null,null,null,{"$f":"IF(Table2[[#This Row],[Valuta]]=\"EUR\",tecaj,\"\")","v":""},null,{"$f":"IF(Table2[[#This Row],[Valuta]]<>\"\",IF(Table2[[#This Row],[Valuta]]=\"HRK\",Table2[[#This Row],[Iznos]],ROUND(Table2[[#This Row],[Iznos]]*Table2[[#This Row],[Tečaj EK]],2)),\"\")","v":""}]
[null,null,null,null,null,null,{"$f":"IF(Table2[[#This Row],[Valuta]]=\"EUR\",tecaj,\"\")","v":""},null,{"$f":"IF(Table2[[#This Row],[Valuta]]<>\"\",IF(Table2[[#This Row],[Valuta]]=\"HRK\",Table2[[#This Row],[Iznos]],ROUND(Table2[[#This Row],[Iznos]]*Table2[[#This Row],[Tečaj EK]],2)),\"\")","v":""}]
[null,null,null,null,null,null,{"$f":"IF(Table2[[#This Row],[Valuta]]=\"EUR\",tecaj,\"\")","v":""},null,{"$f":"IF(Table2[[#This Row],[Valuta]]<>\"\",IF(Table2[[#This Row],[Valuta]]=\"HRK\",Table2[[#This Row],[Iznos]],ROUND(Table2[[#This Row],[Iznos]]*Table2[[#This Row],[Tečaj EK]],2)),\"\")","v":""}]
[null,null,null,null,null,null,{"$f":"IF(Table2[[#This Row],[Valuta]]=\"EUR\",tecaj,\"\")","v":""},null,{"$f":"IF(Table2[[#This Row],[Valuta]]<>\"\",IF(Table2[[#This Row],[Valuta]]=\"HRK\",Table2[[#This Row],[Iznos]],ROUND(Table2[[#This Row],[Iznos]]*Table2[[#This Row],[Tečaj EK]],2)),\"\")","v":""}]
["Total",null,null,null,null,null,null,null,{"$f":"SUBTOTAL(109,Table2[[Iznos HRK ]])","v":0}]
[]
["Mjesto:"]
["Datum:"]
["Potpis sudionika na aktivnosti:"]
[]
["Popunjava djelatnik Agencije"]
[]
["Tečaj EUR (Inforeuro) na dan potpisivanja ugovora",null,null,{"$f":"IF(B49<B50,B49,B50)","v":0},{"$f":"IF(B51<B52,B51,B52)","v":0}]
[]
[null,"iznos u HRK",null,"Komentar"]
["UKUPNI TROŠKOVI PUTA",{"$f":"ROUND(SUMIFS(Table2[[Iznos HRK ]],Table2[prijevoz / dnevnica],\"prijevoz\",Table2[Odobrava se\n(DA/NE)],\"DA\"),2)","v":0},null,"\n"]
["MAKSIMALNO DOZVOLJENI IZNOS ZA TROŠKOVE PUTOVANJA",{"$f":"ROUND(C50*tecaj,2)","v":0}]
["UKUPNI TROŠKOVI ZA TROŠKOVE ŽIVOTA",{"$f":"ROUND(SUMIFS(Table2[[Iznos HRK ]],Table2[prijevoz / dnevnica],\"dnevnica\",Table2[Odobrava se\n(DA/NE)],\"DA\"),2)","v":0}]
["MAKSIMALNO DOZVOLJENI IZNOS ZA TROŠKOVE ŽIVOTA",{"$f":"ROUND(C52*tecaj,2)","v":0}]
["MAKSIMALNO DOZVOLJENI IZNOS UKUPNO",{"$f":"B52+B50","v":0}]
["PRIHVATLJIVI TROŠKOVI",{"$f":"D46+E46","v":0}]
["IZNOS ISPLATE",{"$f":"IF(B54>B53,B53,B54)","v":0}]
[]
["Datum primitka izvješća:",null,null,"Datum analize:"]
["Rok za isplatu:",{"$f":"B57+60+(B62-B61)+(B64-B63)","v":60},null,"Financijsku analizu izvršio/la:"]
[null,null,null,"Odobrio/la: "]
["Nadopune:"]
["Datum zahtjeva za 1. nadopunu dokumentacije:"]
["Datum primitka 1. nadopune dokumentacije: "]
["Datum zahtjeva za 2. nadopunu dokumentacije:"]
["Datum primitka 2. nadopune dokumentacije: "]

{"sheet":"Macros","index":1,"n_rows":1,"n_cols":1,"rows_kept":1,"cut":false,"hidden":true,"merged":[]}
["Molimo Vas omogućite upotrebu Makroa klikom na \"Enable content\" na žutoj traci."]

{"sheet":"Nalog_za_isplatu","index":2,"n_rows":34,"n_cols":3,"rows_kept":34,"cut":false,"hidden":true,"merged":[[30,0,30,1],[31,0,31,1],[32,0,32,1],[33,0,33,1],[17,1,17,2],[18,1,18,2]]}
["Agencija za mobilnost i programe Europske unije "]
["Naziv dokumenta",null,"Financijska potpora za projekte u okviru programa eTwinning"]
["Organizacijska jedinica",null,"Odjel za opće obrazovanje"]
["Naziv ustanove/individualnog korisnika",null,{"$f":"eTW_Fin_izvjesce_analiza!B7","v":0}]
["Adresa",null,{"$f":"eTW_Fin_izvjesce_analiza!B8","v":0}]
["OIB",null,{"$f":"eTW_Fin_izvjesce_analiza!B10","v":0}]
["Broj Ugovora",null,{"$f":"eTW_Fin_izvjesce_analiza!B6","v":0}]
[]
["Zahtjev za završnu isplatu korisniku"]
[]
["IBAN:                               ",{"$f":"eTW_Fin_izvjesce_analiza!B11","v":0}]
[null,{"$f":"IF(eTW_Fin_izvjesce_analiza!B12<>\"\", CONCATENATE(\"Model i poziv na broj: \",eTW_Fin_izvjesce_analiza!B12),\"\")","v":""}]
["Banka:                         ",{"$f":"VLOOKUP(MID(B11,5,7),banke_popis[],2,FALSE)","v":{"$error":"#N/A"}}]
["Vlasnik računa:     ",{"$f":"eTW_Fin_izvjesce_analiza!B9","v":0}]
[]
["Iznos naknade:",{"$f":"eTW_Fin_izvjesce_analiza!B55","v":0}]
[]
["Tečaj:",{"$f":"\"Tečaj Europske središnje banke na dan potpisa ugovora (1EUR = \"&tecaj&\" EUR)\"","v":"Tečaj Europske središnje banke na dan potpisa ugovora (1EUR =  EUR)"}]
["Opis posla (dokumentacija):",{"$f":"\"Ugovor o dodjeli financijske potpore – \"&C7&\" \nZavršna isplata \"&TEXT(B16,\"#.###,00\")&\" HRK (ukupni iznos financijske potpore odobren završnim izvješćem: \"&TEXT(eTW_Fin_izvjesce_analiza!B55,\"#.###,00\")&\" HRK\"","v":"Ugovor o dodjeli financijske potpore – 0 \nZavršna isplata ,00 HRK (ukupni iznos financijske potpore odobren završnim izvješćem: ,00 HRK"}]
[]
["Rok za isplatu :                   ",{"$f":"eTW_Fin_izvjesce_analiza!B58","v":60}]
[]
["Broj bankovnog računa s kojeg se izvršava plaćanje:  HR3423600001501431330"]
[]
["Podaci vezani uz isplatu"]
[]
["Aktivnost:        ","A818024 - Provedba eTwinning mreže"]
["Izvor:                ","Projekti za korisnike – izvor 51"]
["Vrsta organizacije: ",{"$f":"eTW_Fin_izvjesce_analiza!B14","v":0}]
[]
["Podnositelj zahtjeva – voditelj programskog odsjeka (potpis):",null,"Datum zahtjeva:"]
["Primitak zahtjeva u Odsjeku za financije (paraf):",null,"Datum :"]
["Kontrola u Odsjeku za financije (potpis):",null,"Datum:"]
["Zahtjev odobrio/la - pomoćnik ravnatelja (potpis):",null,"Datum:"]

{"sheet":"popis banaka","index":3,"n_rows":26,"n_cols":4,"rows_kept":26,"cut":false,"hidden":true,"merged":[]}
["Vodeći brojevi banaka",null,null,"Broj mora biti kao text!"]
[]
["Vodeći broj banke","Naziv banke"]
["2500009","ADDIKO BANK d.d. Zagreb"]
["2481000","AGRAM BANKA d.d. Zagreb"]
["4133006","BANKA KOVANICA d.d. Varaždin"]
["2488001","BKS BANK AG, Glavna podružnica Hrvatska"]
["2485003","CROATIA BANKA d.d. Zagreb"]
["2402006","ERSTE & STEIERMÄRKISCHE BANK d.d. Rijeka"]
["2493003","HRVATSKA BANKA ZA OBNOVU I RAZVITAK Zagreb"]
["1001005","HRVATSKA NARODNA BANKA"]
["2390001","HRVATSKA POŠTANSKA BANKA d.d. Zagreb"]
["2492008","IMEX BANKA d.d. Split"]
["2380006","ISTARSKA KREDITNA BANKA  UMAG d.d. Umag"]
["2489004","J&T banka d.d. Varaždin"]
["2400008","KARLOVAČKA BANKA d.d. Karlovac"]
["4124003","KENTBANK d.d. Zagreb"]
["2407000","OTP BANKA HRVATSKA d.d. Split"]
["2408002","PARTNER BANKA d.d. Zagreb"]
["2386002","PODRAVSKA BANKA d.d. Koprivnica"]
["2340009","PRIVREDNA BANKA ZAGREB d.d. Zagreb"]
["2484008","RAIFFEISENBANK AUSTRIA d.d. Zagreb"]
["2403009","SAMOBORSKA BANKA d.d. Samobor"]
["2503007","SBERBANK d.d. Zagreb"]
["2412009","SLATINSKA BANKA d.d. Slatina"]
["2360000","ZAGREBAČKA BANKA d.d. Zagreb"]

{"sheet":"HR_dnevnice","index":4,"n_rows":101,"n_cols":3,"rows_kept":101,"cut":false,"hidden":true,"merged":[]}
["nazivdržave","iznos dnevnice","valuta"]
["Afganistan",35,"USD"]
["Albanija",30,"EUR"]
["Alžir",40,"USD"]
["Andora",70,"USD"]
["Angola",35,"USD"]
["Argentina",50,"USD"]
["Armenija",50,"USD"]
["Australija",85,"USD"]
["Austrija",70,"EUR"]
["Azerbajdžan",50,"USD"]
["Belgija",70,"EUR"]
["Bjelarusija",50,"USD"]
["Bolivija",40,"USD"]
["BosnaiHercegovina",30,"EUR"]
["Brazil",40,"USD"]
["Bugarska",40,"EUR"]
["Cipar",60,"EUR"]
["Češka",50,"EUR"]
["Čile",40,"USD"]
["Danska",70,"EUR"]
["DNRSjevernaKoreja",40,"USD"]
["Egipat",40,"USD"]
["Estonija",40,"EUR"]
["Etiopija",35,"USD"]
["Filipini",40,"USD"]
["Finska",70,"EUR"]
["Francuska",70,"EUR"]
["Gruzija",50,"EUR"]
["Grčka ",60,"EUR"]
["Hrvatska",170,"Kn"]
["Indija",40,"USD"]
["Indonezija",40,"USD"]
["Irak",60,"USD"]
["Iran",60,"USD"]
["Irska",70,"EUR"]
["Island",80,"EUR"]
["Italija",70,"EUR"]
["Izrael",70,"USD"]
["Jamajka",35,"USD"]
["Japan",85,"USD"]
["Jemen",35,"USD"]
["Jordan",35,"USD"]
["JužnoafričkaRepublika",50,"USD"]
["Kanada",85,"USD"]
["Kazahstan",50,"USD"]
["Kenija",35,"USD"]
["KirgiskaRepublika",50,"USD"]
["Kolumbija",40,"USD"]
["Kongo",35,"USD"]
["Kuba",35,"USD"]
["Kuvajt",70,"USD"]
["Latvija",40,"EUR"]
["Libanon",35,"USD"]
["Liberija",40,"USD"]
["Libija",40,"USD"]
["Litva",40,"EUR"]
["Luksemburg",80,"EUR"]
["Mađarska",50,"EUR"]
["Makedonija",30,"EUR"]
["Malezija",40,"USD"]
["Malta",60,"EUR"]
["Meksiko",35,"USD"]
["Moldova",40,"USD"]
["Monako",70,"EUR"]
["Mozambik",35,"USD"]
["Nizozemska",70,"EUR"]
["Norveška",80,"EUR"]
["NoviZeland",70,"USD"]
["NRKina",50,"USD"]
["NRKina–HongKong",95,"USD"]
["Njemačka",70,"EUR"]
["Pakistan",40,"USD"]
["Panama",50,"USD"]
["Peru",35,"USD"]
["Poljska",40,"EUR"]
["Portugal",60,"EUR"]
["RepublikaJužnaKoreja",70,"USD"]
["Rumunjska",40,"EUR"]
["RuskaFederacija",50,"USD"]
["SAD",95,"USD"]
["SaudijskaArabija",50,"USD"]
["Senegal",35,"USD"]
["Singapur",85,"USD"]
["Sirija",50,"USD"]
["Slovačka",50,"EUR"]
["Slovenija",50,"EUR"]
["SrbijaiCrnaGora",30,"EUR"]
["Sudan",35,"USD"]
["Španjolska",60,"EUR"]
["Švedska",80,"EUR"]
["Švicarska",80,"EUR"]
["Tadžikistan",50,"USD"]
["Tunis",35,"USD"]
["Turkmenistan",50,"USD"]
["Turska",50,"EUR"]
["UjedinjeniArapskiEmirati",50,"USD"]
["UjedinjenoKraljevstvoVelikeBritanjeiSj.Irske",70,"EUR"]
["Ukrajina",50,"USD"]
["Uzbekistan",50,"USD"]
["Ostalo",35,"USD"]

{"sheet":"code","index":5,"n_rows":7,"n_cols":2,"rows_kept":7,"cut":false,"hidden":true,"merged":[]}
[]
["Odjeli","aktivnost"]
["Odjel za strateška partnerstva i strukturirani dijalog u području mladih","A818045 – program Erasmus+"]
["Odjel za visoko obrazovanje","A818044 – program Erasmus+"]
["Odjel za obrazovanje odraslih","A818044 – program Erasmus+"]
["Odjel za strukovno obrazovanje i osposobljavanje","A818044 – program Erasmus+"]
["Odjel za opće obrazovanje","A818044 – program Erasmus+"]